bitfinex/quotes_BTCUSD_20260127
["timestamp","ask_amount","ask_price","bid_price","bid_amount"]
[1769500192415,0.11308042,88458.0,88447.0,0.07406765]
[1769500192631,0.02491753,88461.0,88447.0,0.07406765]
[1769500192827,0.11307989,88460.0,88447.0,0.07406765]
[1769500193034,0.11307989,88459.0,88447.0,0.07406765]
[1769500193258,0.11307989,88458.0,88447.0,0.07406765]
[1769500193461,0.02491753,88461.0,88447.0,0.07406765]
[1769500193663,0.11307981,88460.0,88447.0,0.07406765]
[1769500193856,0.11307981,88459.0,88447.0,0.07406765]
[1769500194064,0.11307981,88458.0,88447.0,0.07406765]
[1769500194408,0.02491753,88461.0,88447.0,0.07406765]
[1769500194600,0.11308035,88460.0,88448.0,0.05568909]
[1769500194791,0.11308035,88459.0,88448.0,0.05568909]
[1769500195005,0.11308035,88458.0,88448.0,0.05568909]
[1769500195204,0.50468468,88465.0,88447.0,0.50794513]
[1769500195387,0.13801974,88464.0,88447.0,0.50794513]
[1769500195596,0.11308163,88463.0,88447.0,0.50794513]
[1769500195771,0.11308163,88462.0,88447.0,0.50794513]
[1769500196130,0.11308163,88461.0,88447.0,0.50794513]
[1769500196308,0.11308163,88460.0,88447.0,0.50794513]
[1769500196607,0.11308163,88459.0,88448.0,0.0303491]
[1769500196809,0.11308163,88458.0,88446.0,0.02390354]
[1769500197047,0.02493811,88461.0,88441.0,0.53184867]
[1769500197235,0.11308344,88460.0,88441.0,0.53184867]
[1769500197387,0.11308344,88459.0,88441.0,0.53184867]
[1769500197595,0.11308344,88458.0,88441.0,0.53184867]
[1769500197816,0.02493811,88461.0,88441.0,0.53184867]
[1769500198019,0.11308267,88460.0,88441.0,0.53184867]
[1769500198223,0.11308267,88459.0,88441.0,0.53184867]
[1769500198415,0.11308267,88458.0,88441.0,0.53184867]
[1769500198624,0.02493811,88461.0,88441.0,0.53184867]
[1769500198866,0.11308225,88460.0,88441.0,0.58506046]
[1769500199002,0.11308225,88459.0,88441.0,0.58506046]
[1769500199202,0.11308225,88458.0,88441.0,0.58506046]
[1769500199419,0.02493811,88461.0,88441.0,0.58506046]
[1769500199625,0.11308236,88460.0,88441.0,0.58506046]
[1769500199783,0.11308236,88459.0,88442.0,0.05852082]
[1769500199982,0.11308236,88458.0,88442.0,0.05852082]
[1769500200226,0.02493811,88461.0,88442.0,0.05852082]
[1769500200411,0.11308266,88460.0,88442.0,0.56646595]
[1769500200610,0.11308266,88459.0,88442.0,0.50794513]
[1769500200810,0.11308266,88458.0,88442.0,0.50794513]
[1769500201034,0.11307981,88457.0,88442.0,0.50794513]
[1769500201281,0.11307981,88456.0,88442.0,0.50794513]
[1769500201501,0.11307981,88455.0,88442.0,0.50794513]
[1769500201712,0.09051451,88466.0,88435.0,0.0001477]
[1769500201884,0.50468468,88463.0,88436.0,0.56053832]
[1769500202039,0.02493811,88460.0,88438.0,0.50794513]
[1769500202246,0.64270407,88459.0,88438.0,0.53184867]
[1769500202446,0.11308128,88458.0,88438.0,0.53184867]
[1769500202646,0.13801939,88458.0,88438.0,0.53184867]
[1769500202860,0.11308128,88457.0,88438.0,0.53184867]
[1769500204736,0.11308128,88457.0,88438.0,0.50794513]
[1769500204938,0.11308128,88457.0,88441.0,0.50794513]
[1769500206807,0.11308128,88457.0,88441.0,0.53184867]
[1769500207219,0.11308128,88457.0,88442.0,0.02390354]
[1769500207398,0.11308128,88457.0,88443.0,0.50794513]
[1769500211171,0.11308128,88457.0,88442.0,0.02390354]
[1769500211371,0.13801939,88457.0,88440.0,0.37726264]
[1769500211572,0.11308128,88456.0,88440.0,0.37726264]
[1769500211987,0.13801939,88456.0,88440.0,0.37726264]
[1769500212212,0.11308128,88455.0,88439.0,0.07092076]
[1769500212891,0.02493811,88453.0,88437.0,0.53184867]
[1769500213140,0.02493811,88451.0,88431.0,0.50794513]
[1769500213341,0.02493811,88450.0,88431.0,0.50794513]
[1769500214414,0.06782577,88462.0,88430.0,0.54956618]
[1769500214415,0.50468468,88447.0,88430.0,0.52566264]
[1769500214749,0.02493811,88446.0,88430.0,0.52566264]
[1769500214950,0.50468468,88461.0,88431.0,0.50794513]
[1769500215106,0.02493811,88458.0,88431.0,0.50794513]
[1769500215311,0.50468468,88455.0,88431.0,0.50794513]
[1769500215520,0.50468468,88453.0,88431.0,0.50794513]
[1769500215725,0.02493811,88452.0,88431.0,0.50794513]
[1769500218914,0.52962279,88452.0,88431.0,0.50794513]
[1769500219570,0.02493811,88451.0,88431.0,0.50794513]
[1769500221712,0.02493811,88451.0,88435.0,0.50811645]
[1769500224813,0.52727674,88451.0,88435.0,0.50811645]
[1769500228851,0.52727674,88451.0,88435.0,0.02283268]
[1769500232566,0.11311187,88450.0,88435.0,0.02283268]
[1769500232769,0.52727674,88451.0,88435.0,0.02283268]
[1769500232959,0.11311191,88450.0,88435.0,0.02283268]
[1769500233155,0.52727674,88451.0,88435.0,0.02283268]
[1769500234952,0.11310425,88450.0,88435.0,0.02283268]
[1769500235185,0.52727674,88451.0,88435.0,0.02283268]
[1769500235404,0.11310376,88450.0,88435.0,0.02283268]
[1769500235723,0.52727674,88451.0,88435.0,0.02283268]
[1769500235926,0.11310356,88450.0,88441.0,0.50114406]
[1769500236127,0.47111808,88460.0,88442.0,0.02357713]
[1769500236333,0.11310252,88459.0,88442.0,0.02357713]
[1769500236535,0.11310252,88458.0,88442.0,0.02357713]
[1769500236752,0.11310252,88457.0,88442.0,0.02357713]
[1769500236971,0.11310252,88456.0,88442.0,0.02357713]
[1769500237180,0.11310252,88455.0,88441.0,0.49074842]
[1769500237378,0.11310252,88454.0,88441.0,0.49074842]
[1769500237613,0.11310252,88453.0,88441.0,0.49074842]
[1769500237793,0.47111808,88460.0,88441.0,0.49074842]
[1769500237994,0.11310412,88459.0,88441.0,0.49074842]
[1769500238195,0.11310412,88458.0,88441.0,0.49074842]
[1769500238404,0.11310412,88457.0,88441.0,0.49074842]
[1769500238613,0.11310412,88456.0,88442.0,0.62271921]
[1769500238872,0.11310412,88455.0,88442.0,0.62271921]
[1769500239050,0.11310412,88454.0,88442.0,0.62271921]
[1769500239264,0.11310412,88453.0,88442.0,0.62271921]
[1769500239478,0.47111808,88460.0,88442.0,0.62271921]
[1769500239985,0.11310689,88459.0,88442.0,0.62271921]
[1769500240185,0.11310689,88458.0,88442.0,0.52472119]
[1769500240407,0.11310689,88457.0,88442.0,0.52472119]
[1769500240606,0.11310689,88456.0,88442.0,0.52472119]
[1769500240886,0.11310689,88455.0,88442.0,0.52472119]
[1769500241124,0.11310689,88454.0,88442.0,0.52472119]
[1769500241307,0.47111808,88460.0,88442.0,0.52472119]
[1769500241308,0.11310689,88453.0,88442.0,0.52472119]
[1769500241510,0.11310689,88452.0,88442.0,0.52472119]
[1769500241718,0.47111808,88460.0,88442.0,0.52472119]
[1769500241923,0.11311193,88459.0,88442.0,0.52472119]
[1769500242223,0.11311193,88458.0,88442.0,0.52472119]
[1769500242477,0.11311193,88457.0,88442.0,0.52472119]
[1769500242653,0.11311193,88456.0,88442.0,0.52472119]
[1769500242864,0.11311193,88455.0,88442.0,0.52472119]
[1769500243083,0.11311193,88454.0,88442.0,0.52472119]
[1769500243279,0.11311193,88453.0,88442.0,0.52472119]
[1769500243484,0.11311193,88452.0,88442.0,0.52472119]
[1769500243695,0.47111808,88459.0,88442.0,0.52472119]
[1769500243899,0.11311836,88458.0,88442.0,0.52472119]
[1769500244035,0.11311836,88457.0,88442.0,0.52472119]
[1769500244257,0.11311836,88456.0,88442.0,0.52472119]
[1769500244645,0.11311836,88455.0,88442.0,0.52472119]
[1769500244851,0.11311836,88454.0,88442.0,0.52472119]
[1769500245054,0.11311836,88453.0,88442.0,0.52472119]
[1769500245258,0.11311836,88452.0,88442.0,0.52472119]
[1769500245460,0.47111808,88458.0,88442.0,0.52472119]
[1769500245633,0.16248689,88457.0,88442.0,0.52472119]
[1769500245783,0.11312107,88456.0,88442.0,0.52472119]
[1769500245980,0.11312107,88455.0,88442.0,0.52472119]
[1769500246196,0.11312107,88454.0,88442.0,0.52472119]
[1769500246382,0.11312107,88453.0,88442.0,0.52472119]
[1769500246583,0.11312107,88452.0,88442.0,0.52472119]
[1769500246821,0.47111808,88458.0,88442.0,0.52472119]
[1769500246996,0.11312285,88457.0,88442.0,0.52472119]
[1769500247201,0.11312285,88456.0,88442.0,0.52472119]
[1769500247423,0.11312285,88455.0,88442.0,0.52472119]
[1769500247745,0.11312285,88454.0,88442.0,0.52472119]
[1769500247882,0.11312285,88453.0,88442.0,0.52472119]
[1769500248087,0.11312285,88452.0,88442.0,0.52472119]
[1769500248289,0.47111808,88458.0,88442.0,0.52472119]
[1769500248565,0.11312237,88457.0,88443.0,0.02357713]
[1769500248850,0.11312237,88456.0,88444.0,0.50114406]
[1769500249050,0.11312237,88455.0,88446.0,0.02357713]
[1769500249201,0.11312237,88454.0,88446.0,0.02357713]
[1769500249407,0.11312237,88453.0,88446.0,0.02357713]
[1769500249623,0.47111808,88463.0,88446.0,0.02357713]
[1769500249807,0.11312179,88462.0,88446.0,0.02357713]
[1769500250004,0.11312179,88461.0,88446.0,0.02357713]
[1769500250239,0.11312179,88460.0,88446.0,0.02357713]
[1769500250463,0.11312179,88459.0,88451.0,0.52472119]
[1769500250678,0.11312179,88458.0,88451.0,0.52472119]
[1769500250907,0.11312179,88457.0,88451.0,0.52472119]
[1769500251110,0.11312179,88456.0,88442.0,0.02357713]
[1769500251347,0.0001477,88475.0,88458.0,0.50114406]
[1769500251540,0.47111808,88474.0,88458.0,0.50114406]
[1769500251748,0.49365816,88474.0,88459.0,0.05247212]
[1769500252060,0.49365816,88474.0,88457.0,0.02357713]
[1769500252225,0.47111808,88472.0,88457.0,0.02357713]
[1769500255223,0.47111808,88472.0,88453.0,0.50114406]
[1769500255424,0.46630383,88470.0,88454.0,0.08783038]
[1769500257493,0.49051088,88470.0,88454.0,0.08783038]
[1769500259799,0.49051088,88470.0,88453.0,0.50114406]
[1769500260639,0.02420705,88470.0,88453.0,0.52384438]
[1769500260826,0.02420705,88470.0,88453.0,0.50114406]
[1769500261061,0.02420705,88470.0,88454.0,0.51403653]
[1769500261997,0.46630383,88471.0,88454.0,0.49133621]
[1769500262209,0.46630383,88471.0,88455.0,0.10954992]
[1769500262412,0.0092518,88455.0,88444.0,0.1485477]
[1769500262614,0.49051088,88455.0,88444.0,0.0001477]
[1769500264143,0.46630383,88471.0,88444.0,0.51418423]
[1769500264349,0.46630383,88467.0,88445.0,0.0891344]
[1769500264556,0.02420705,88464.0,88445.0,0.0891344]
[1769500264732,0.02420705,88462.0,88445.0,0.0891344]
[1769500264939,0.49051088,88462.0,88445.0,0.0891344]
[1769500265170,0.49051088,88462.0,88446.0,0.02680972]
[1769500266177,0.49051088,88462.0,88450.0,0.37715978]
[1769500266497,0.0001477,88475.0,88454.0,0.02270032]
[1769500266700,0.46630383,88472.0,88454.0,0.02270032]
[1769500266879,0.49051088,88471.0,88454.0,0.02270032]
[1769500267076,0.02420705,88470.0,88454.0,0.02270032]
[1769500267279,0.49051088,88470.0,88454.0,0.02270032]
[1769500267831,0.46630383,88470.0,88451.0,0.49133621]
[1769500268039,0.0001477,88475.0,88451.0,0.49133621]
[1769500268253,0.11294917,88474.0,88454.0,0.02270032]
[1769500268454,0.46630383,88471.0,88454.0,0.02270032]
[1769500268664,0.49051088,88470.0,88454.0,0.02270032]
[1769500272146,0.46630383,88470.0,88450.0,0.86849599]
[1769500272313,0.02420705,88467.0,88444.0,0.0001477]
[1769500272516,0.46630383,88464.0,88444.0,0.0001477]
[1769500272728,0.49051088,88462.0,88444.0,0.0001477]
[1769500273347,0.01130288,88473.0,88444.0,0.0001477]
[1769500273348,0.46630383,88468.0,88444.0,0.0001477]
[1769500273557,0.02420705,88465.0,88444.0,0.0001477]
[1769500273728,0.02420705,88461.0,88444.0,0.0001477]
[1769500273927,0.46630383,88458.0,88444.0,0.0001477]
[1769500274136,0.49051088,88457.0,88444.0,0.0001477]
[1769500274345,0.46630383,88457.0,88444.0,0.0001477]
[1769500274582,0.46630383,88455.0,88444.0,0.0001477]
[1769500274780,0.02420705,88454.0,88444.0,0.0001477]
[1769500280020,0.02420705,88470.0,88444.0,0.0001477]
[1769500280315,0.46630383,88467.0,88445.0,0.08686437]
[1769500280448,0.46630383,88465.0,88445.0,0.08686437]
[1769500280650,0.46630383,88463.0,88445.0,0.08686437]
[1769500281022,0.49051088,88460.0,88445.0,0.08686437]
[1769500281229,0.49051088,88460.0,88444.0,0.0001477]
[1769500295374,0.49051088,88460.0,88444.0,0.02275412]
[1769500295592,0.49051088,88460.0,88444.0,0.48185765]
[1769500295928,0.46630383,88460.0,88444.0,0.02275412]
[1769500296633,0.02309728,88465.0,88445.0,0.45910353]
[1769500296851,0.11311034,88464.0,88448.0,0.02260642]
[1769500297053,0.11311034,88463.0,88448.0,0.02260642]
[1769500297271,0.02309728,88465.0,88448.0,0.02260642]
[1769500297432,0.1131136,88464.0,88448.0,0.02260642]
[1769500297651,0.1131136,88463.0,88448.0,0.05094363]
[1769500297803,0.48637116,88470.0,88451.0,0.02260642]
[1769500298155,0.11311418,88469.0,88451.0,0.02260642]
[1769500298356,0.11311418,88468.0,88451.0,0.02260642]
[1769500298585,0.11311418,88467.0,88452.0,0.11125126]
[1769500298757,0.11311418,88466.0,88452.0,0.11125126]
[1769500298976,0.11311418,88465.0,88452.0,0.11125126]
[1769500299145,0.11311418,88464.0,88452.0,0.11125126]
[1769500299372,0.11311418,88463.0,88452.0,0.11125126]
[1769500299549,0.48637116,88470.0,88452.0,0.11125126]
[1769500299930,0.02309728,88465.0,88446.0,0.02757867]
[1769500300104,0.57640124,88464.0,88446.0,0.02757867]
[1769500300336,0.46327388,88464.0,88447.0,0.02260642]
[1769500300539,0.11313732,88463.0,88447.0,0.02260642]
[1769500300716,0.46327388,88464.0,88447.0,0.02260642]
[1769500300878,0.11313757,88463.0,88448.0,0.02260642]
[1769500301080,0.46327388,88464.0,88448.0,0.02260642]
[1769500301280,0.11313727,88463.0,88449.0,0.02260642]
[1769500301599,0.46327388,88464.0,88449.0,0.02260642]
[1769500301814,0.11315234,88463.0,88449.0,0.02260642]
[1769500301999,0.46327388,88464.0,88449.0,0.02260642]
[1769500302203,0.11315243,88463.0,88451.0,0.48170995]
[1769500302384,0.46327388,88467.0,88444.0,0.02275412]
[1769500302584,0.46327388,88463.0,88444.0,0.02275412]
[1769500309097,0.46327388,88461.0,88444.0,0.02275412]
[1769500309373,0.46327388,88459.0,88444.0,0.02275412]
[1769500309584,0.46327388,88457.0,88444.0,0.02275412]
[1769500313233,0.46327388,88457.0,88444.0,0.0001477]
[1769500317444,0.02344087,88461.0,88444.0,0.0001477]
[1769500317671,0.11315822,88460.0,88445.0,0.02388293]
[1769500317875,0.11315822,88459.0,88445.0,0.02388293]
[1769500318074,0.02344087,88464.0,88445.0,0.02388293]
[1769500318332,0.01130339,88469.0,88445.0,0.02388293]
[1769500318333,0.43719421,88462.0,88445.0,0.02388293]
[1769500318529,0.43719421,88460.0,88445.0,0.02388293]
[1769500318731,0.11316217,88459.0,88445.0,0.02388293]
[1769500319041,0.43719421,88460.0,88445.0,0.02388293]
[1769500320608,0.43719421,88460.0,88445.0,0.05603311]
[1769500322150,0.43719421,88452.0,88435.0,0.0001477]
[1769500322370,0.46063508,88452.0,88435.0,0.0001477]
[1769500322921,0.43719421,88450.0,88435.0,0.0001477]
[1769500323108,0.43719421,88448.0,88435.0,0.0001477]
[1769500323363,0.02344087,88445.0,88435.0,0.0001477]
[1769500323579,0.46063508,88443.0,88435.0,0.0001477]
[1769500331064,0.00012156,88434.0,88419.0,0.02388293]
[1769500331276,0.00016829,88434.0,88419.0,0.02388293]
[1769500331493,0.04834183,88433.0,88419.0,0.02388293]
[1769500332129,4.673e-05,88434.0,88419.0,0.02388293]
[1769500333737,0.43724094,88434.0,88419.0,0.02388293]
[1769500338991,0.01130825,88431.0,88417.0,0.0001477]
[1769500339200,0.43719421,88430.0,88417.0,0.0001477]
[1769500341026,0.49230852,88430.0,88417.0,0.0001477]
[1769500341361,0.43719421,88430.0,88417.0,0.0001477]
[1769500342393,0.02344087,88432.0,88417.0,0.0001477]
[1769500343881,4.673e-05,88434.0,88417.0,0.0001477]
[1769500344304,4.673e-05,88434.0,88417.0,0.02477109]
[1769500344779,4.673e-05,88434.0,88420.0,0.40191639]
[1769500344967,4.673e-05,88434.0,88421.0,0.42423975]
[1769500345285,0.39873116,88445.0,88421.0,0.10479143]
[1769500345508,0.0001477,88448.0,88425.0,0.39961636]
[1769500346228,0.39887886,88448.0,88425.0,0.39961636]
[1769500346430,0.11275756,88447.0,88425.0,0.39961636]
[1769500346631,0.39887886,88448.0,88426.0,0.02462339]
[1769500346922,0.11275761,88447.0,88429.0,0.39961636]
[1769500347130,0.39887886,88448.0,88430.0,0.02462339]
[1769500347336,0.11275779,88447.0,88430.0,0.02462339]
[1769500347539,0.11275779,88446.0,88430.0,0.02462339]
[1769500347684,0.39887886,88448.0,88430.0,0.02462339]
[1769500347891,0.11278839,88447.0,88430.0,0.02462339]
[1769500348093,0.11278839,88446.0,88430.0,0.02462339]
[1769500348292,0.39887886,88448.0,88430.0,0.02462339]
[1769500348521,0.11281726,88447.0,88430.0,0.02462339]
[1769500348723,0.11281726,88446.0,88430.0,0.02462339]
[1769500349052,0.45458374,88448.0,88430.0,0.02462339]
[1769500349306,0.11281726,88447.0,88430.0,0.02462339]
[1769500349510,0.46588981,88448.0,88430.0,0.02462339]
[1769500349511,0.11281726,88446.0,88430.0,0.02462339]
[1769500349746,0.11281726,88445.0,88430.0,0.02462339]
[1769500349980,0.45458374,88448.0,88430.0,0.02462339]
[1769500350204,0.11285237,88447.0,88430.0,0.02462339]
[1769500350439,0.11285237,88446.0,88430.0,0.02462339]
[1769500350654,0.11285237,88445.0,88430.0,0.02462339]
[1769500350889,0.45458374,88448.0,88430.0,0.02462339]
[1769500351110,0.11285706,88447.0,88430.0,0.02462339]
[1769500351339,0.11285706,88446.0,88430.0,0.02462339]
[1769500351562,0.11285706,88445.0,88430.0,0.02462339]
[1769500351823,0.11285706,88444.0,88430.0,0.02462339]
[1769500352025,0.11285706,88443.0,88430.0,0.02462339]
[1769500352220,0.45458374,88448.0,88430.0,0.02462339]
[1769500352433,0.11292428,88447.0,88430.0,0.02462339]
[1769500352641,0.11292428,88446.0,88430.0,0.02462339]
[1769500352836,0.11292428,88445.0,88430.0,0.02462339]
[1769500353055,0.11292428,88444.0,88430.0,0.02462339]
[1769500353203,0.11292428,88443.0,88430.0,0.02462339]
[1769500353418,0.11294079,88442.0,88430.0,0.02462339]
[1769500353626,0.02420081,88447.0,88430.0,0.02462339]
[1769500353823,0.11294093,88446.0,88430.0,0.02462339]
[1769500354023,0.11294093,88445.0,88430.0,0.02462339]
[1769500354227,0.11294093,88444.0,88430.0,0.02462339]
[1769500354424,0.11294093,88443.0,88430.0,0.02462339]
[1769500354637,0.11294093,88442.0,88430.0,0.02462339]
[1769500354848,0.02420081,88447.0,88430.0,0.02462339]
[1769500355018,0.11295002,88446.0,88430.0,0.02462339]
[1769500355252,0.11295002,88445.0,88430.0,0.02462339]
[1769500355435,0.11295002,88444.0,88430.0,0.02462339]
[1769500355636,0.11295002,88443.0,88430.0,0.02462339]
[1769500355954,0.11295002,88442.0,88430.0,0.02462339]
[1769500356195,0.02420081,88447.0,88430.0,0.02462339]
[1769500356390,0.1129584,88446.0,88430.0,0.02462339]
[1769500356577,0.1129584,88445.0,88430.0,0.02462339]
[1769500356777,0.1129584,88444.0,88430.0,0.02462339]
[1769500356980,0.1129584,88443.0,88430.0,0.02462339]
[1769500357184,0.1129584,88442.0,88430.0,0.02462339]
[1769500357362,0.1129584,88441.0,88430.0,0.02462339]
[1769500357736,0.02420081,88447.0,88430.0,0.02462339]
[1769500357939,0.11297922,88446.0,88430.0,0.02462339]
[1769500358156,0.11297922,88445.0,88430.0,0.02462339]
[1769500358359,0.11297922,88444.0,88430.0,0.02462339]
[1769500358585,0.11297922,88443.0,88430.0,0.02462339]
[1769500358794,0.11297922,88442.0,88430.0,0.02462339]
[1769500358996,0.11297922,88441.0,88430.0,0.02462339]
[1769500359197,0.02420081,88447.0,88430.0,0.02462339]
[1769500359351,0.11299129,88446.0,88430.0,0.02462339]
[1769500359556,0.11299129,88445.0,88430.0,0.02462339]
[1769500359800,0.11299129,88444.0,88430.0,0.02462339]
[1769500360014,0.11299129,88443.0,88430.0,0.02462339]
[1769500360197,0.11299129,88442.0,88430.0,0.02462339]
[1769500360398,0.11299129,88441.0,88430.0,0.02462339]
[1769500360703,0.11299129,88440.0,88430.0,0.02462339]
[1769500360901,0.04670445,88447.0,88430.0,0.02462339]
[1769500361140,0.02250364,88442.0,88421.0,4.673e-05]
[1769500361338,0.39873116,88440.0,88421.0,4.673e-05]
[1769500361552,0.13552535,88439.0,88421.0,4.673e-05]
[1769500361751,0.02250364,88439.0,88421.0,4.673e-05]
[1769500361960,0.02250364,88439.0,88422.0,0.39961636]
[1769500362186,0.02250364,88439.0,88422.0,0.42423975]
[1769500372307,0.11304951,88438.0,88422.0,0.42423975]
[1769500372507,0.02250364,88439.0,88422.0,0.42423975]
[1769500372830,0.11305045,88438.0,88422.0,0.42423975]
[1769500373013,0.02250364,88439.0,88422.0,0.42423975]
[1769500373211,0.11305061,88438.0,88422.0,0.42423975]
[1769500373435,0.02250364,88439.0,88422.0,0.42423975]
[1769500373734,0.13556838,88438.0,88422.0,0.42423975]
[1769500373913,0.02250364,88438.0,88422.0,0.42423975]
[1769500374433,0.11309121,88437.0,88422.0,0.42423975]
[1769500374661,0.02250364,88438.0,88422.0,0.42423975]
[1769500374863,0.11309174,88437.0,88422.0,0.42423975]
[1769500375018,0.02250364,88438.0,88422.0,0.42423975]
[1769500375194,0.11309207,88437.0,88422.0,0.42423975]
[1769500375402,0.02250364,88438.0,88422.0,0.42423975]
[1769500375599,0.11309475,88437.0,88422.0,0.42423975]
[1769500375825,0.02250364,88438.0,88422.0,0.42423975]
[1769500376026,0.11309479,88437.0,88422.0,0.42423975]
[1769500376201,0.02250364,88438.0,88422.0,0.42423975]
[1769500376425,0.15634905,88437.0,88421.0,4.673e-05]
[1769500376604,0.02275286,88432.0,88421.0,4.673e-05]
[1769500376802,0.36119828,88429.0,88421.0,4.673e-05]
[1769500377015,0.02275286,88428.0,88421.0,4.673e-05]
[1769500379512,0.36119828,88427.0,88421.0,4.673e-05]
[1769500379698,0.02275286,88424.0,88421.0,4.673e-05]
[1769500379935,0.02275286,88423.0,88421.0,4.673e-05]
[1769500383188,0.02275286,88423.0,88405.0,0.39827826]
[1769500383420,0.36119828,88421.0,88408.0,0.00061507]
[1769500383623,0.02275286,88420.0,88408.0,0.00061507]
[1769500384830,0.03839511,88419.0,88408.0,0.00061507]
[1769500385249,0.06114797,88419.0,88408.0,0.00061507]
[1769500385463,0.02275286,88419.0,88408.0,0.00061507]
[1769500386315,0.36119828,88432.0,88408.0,0.39889333]
[1769500386557,0.02275286,88429.0,88408.0,0.39889333]
[1769500386711,0.02275286,88427.0,88408.0,0.39889333]
[1769500386911,0.36119828,88427.0,88408.0,0.39889333]
[1769500387231,0.02275286,88426.0,88408.0,0.39889333]
[1769500389289,0.02275286,88426.0,88408.0,0.44062326]
[1769500393075,0.0001477,88439.0,88408.0,0.44062326]
[1769500393282,0.01130799,88433.0,88411.0,0.02297172]
[1769500393486,0.11287016,88432.0,88414.0,0.39827826]
[1769500393684,0.11287016,88431.0,88414.0,0.39827826]
[1769500393841,0.11287016,88430.0,88414.0,0.39827826]
[1769500394066,0.02275286,88432.0,88414.0,0.39827826]
[1769500394264,0.13562159,88431.0,88414.0,0.39827826]
[1769500394476,0.02275286,88431.0,88414.0,0.39827826]
[1769500394901,0.02275286,88431.0,88414.0,0.41697692]
[1769500396426,0.02275286,88431.0,88414.0,0.39827826]
[1769500398347,0.11287944,88430.0,88414.0,0.39827826]
[1769500398554,0.02275286,88430.0,88414.0,0.39827826]
[1769500399752,0.36119828,88428.0,88408.0,0.39889333]
[1769500399925,0.38395114,88428.0,88410.0,0.03616575]
[1769500400684,0.04517986,88427.0,88410.0,0.43444401]
[1769500402742,0.43983521,88427.0,88410.0,0.43444401]
[1769500402929,0.39465535,88427.0,88410.0,0.43444401]
[1769500404032,0.02403246,88426.0,88410.0,0.43444401]
[1769500405321,0.02403246,88426.0,88410.0,0.45763219]
[1769500405566,0.34389369,88433.0,88412.0,0.35635324]
[1769500405774,0.01130774,88435.0,88412.0,0.35635324]
[1769500405775,0.36792615,88431.0,88412.0,0.35635324]
[1769500405976,0.11292301,88430.0,88412.0,0.35635324]
[1769500406185,0.11292301,88429.0,88412.0,0.35635324]
[1769500406419,0.11292301,88428.0,88412.0,0.35635324]
[1769500406618,0.11292301,88427.0,88412.0,0.35635324]
[1769500406821,0.36792615,88431.0,88412.0,0.35635324]
[1769500407018,0.11294664,88430.0,88412.0,0.35635324]
[1769500407230,0.11294664,88429.0,88412.0,0.35635324]
[1769500407429,0.11294664,88428.0,88412.0,0.35635324]
[1769500407701,0.11294664,88427.0,88412.0,0.35635324]
[1769500407906,0.34389369,88430.0,88412.0,0.35635324]
[1769500408244,0.13698893,88429.0,88412.0,0.35635324]
[1769500408608,0.11295647,88428.0,88412.0,0.40162133]
[1769500409190,0.11295647,88428.0,88412.0,0.37954142]
[1769500411572,0.11295647,88428.0,88412.0,0.35635324]
[1769500411780,0.13698893,88427.0,88412.0,0.35635324]
[1769500411983,0.11295647,88426.0,88412.0,0.35635324]
[1769500423617,0.11295647,88426.0,88411.0,0.02318818]
[1769500426797,0.04921907,88425.0,88411.0,0.02318818]
[1769500428187,0.02403246,88427.0,88411.0,0.02318818]
[1769500428513,0.11302376,88426.0,88411.0,0.02318818]
[1769500428843,0.11302376,88425.0,88411.0,0.02318818]
[1769500429013,0.02403246,88427.0,88411.0,0.02318818]
[1769500429217,0.11302213,88426.0,88411.0,0.02318818]
[1769500429387,0.11302213,88425.0,88411.0,0.02318818]
[1769500429591,0.02403246,88427.0,88411.0,0.02318818]
[1769500429929,0.11302112,88426.0,88411.0,0.02318818]
[1769500430127,0.11302112,88425.0,88412.0,0.04163222]
[1769500430426,0.02403246,88427.0,88412.0,0.04163222]
[1769500430588,0.11302142,88426.0,88412.0,0.04163222]
[1769500430790,0.11302142,88425.0,88411.0,0.37954142]
[1769500430996,0.02403246,88427.0,88411.0,0.37954142]
[1769500431193,0.02403246,88437.0,88412.0,0.02318818]
[1769500431564,0.02403246,88437.0,88418.0,0.35635324]
[1769500431964,0.36792615,88437.0,88418.0,0.35635324]
[1769500432163,0.34389369,88437.0,88418.0,0.35635324]
[1769500432399,0.36792615,88436.0,88418.0,0.35635324]
[1769500432591,0.34389369,88436.0,88419.0,0.03795414]
[1769500432727,0.02403246,88435.0,88419.0,0.03795414]
[1769500432929,0.36792615,88435.0,88419.0,0.03795414]
[1769500434415,0.34389369,88435.0,88419.0,0.03195414]
[1769500434568,0.32420708,88433.0,88410.0,0.03616575]
[1769500434933,0.02258215,88430.0,88410.0,0.40612404]
[1769500435134,0.02258215,88430.0,88411.0,0.4106322]
[1769500435424,0.02258215,88430.0,88412.0,0.02372584]
[1769500435642,0.02258215,88430.0,88412.0,0.36995829]
[1769500435963,0.02258215,88430.0,88412.0,0.34623245]
[1769500436182,0.02258215,88430.0,88413.0,0.36995829]
[1769500436386,0.02258215,88430.0,88414.0,0.0784211]
[1769500438330,0.02258215,88430.0,88414.0,0.42465355]
[1769500449157,0.32420708,88430.0,88414.0,0.42465355]
[1769500449358,0.02258215,88429.0,88414.0,0.42465355]
[1769500451030,0.02258215,88429.0,88414.0,0.0784211]
[1769500451258,0.02258215,88427.0,88410.0,0.03616575]
[1769500451458,0.02258215,88426.0,88410.0,0.03616575]
[1769500451936,0.32420708,88426.0,88410.0,0.03616575]
[1769500452144,0.02258215,88425.0,88410.0,0.03616575]
[1769500458250,0.32420708,88424.0,88411.0,0.03616575]
[1769500458464,0.02258215,88421.0,88411.0,0.03616575]
[1769500458661,0.32420708,88419.0,88411.0,0.03616575]
[1769500458877,0.02258215,88418.0,88411.0,0.03616575]
[1769500460235,0.02258215,88418.0,88408.0,0.00061507]
[1769500460470,0.02258215,88418.0,88409.0,0.03616575]
[1769500460471,0.02258215,88417.0,88409.0,0.03616575]
[1769500461326,0.02258215,88417.0,88408.0,0.00061507]
[1769500461519,0.36165669,88416.0,88408.0,0.00061507]
[1769500462274,0.33757613,88416.0,88408.0,0.00061507]
[1769500462410,0.02408056,88415.0,88408.0,0.00061507]
[1769500465969,0.02429866,88420.0,88408.0,0.00061507]
[1769500467735,0.32398575,88421.0,88409.0,0.03616575]
[1769500470754,0.02429866,88424.0,88409.0,0.03616575]
[1769500472253,0.32398575,88426.0,88410.0,0.0238311]
[1769500472459,0.11289708,88425.0,88410.0,0.0238311]
[1769500472687,0.32398575,88426.0,88410.0,0.0238311]
[1769500472841,0.11289707,88425.0,88410.0,0.0238311]
[1769500473042,0.32398575,88426.0,88410.0,0.0238311]
[1769500473247,0.32398575,88426.0,88401.0,0.31305316]
[1769500473248,0.34828441,88426.0,88401.0,0.31305316]
[1769500473452,0.34875201,88426.0,88408.0,0.03616575]
[1769500475425,0.02429866,88425.0,88408.0,0.03616575]
[1769500475637,0.34828441,88425.0,88408.0,0.03616575]
[1769500475843,0.32398575,88425.0,88408.0,0.03616575]
[1769500476037,0.02429866,88424.0,88408.0,0.03616575]
[1769500476252,0.32398575,88423.0,88408.0,0.03616575]
[1769500478417,0.32398575,88423.0,88409.0,0.037305]
[1769500480873,0.0004676,88426.0,88410.0,0.31305316]
[1769500481053,0.0004676,88426.0,88410.0,0.33688426]
[1769500483374,0.1129207,88425.0,88410.0,0.33688426]
[1769500483582,0.0004676,88426.0,88410.0,0.33688426]